[Event "Titled Tuesday Blitz February 15 Early 2022"]
[White "Levitskiy, Andrey"]
[Black "Tay, Junior"]
[WhiteFideId "14132885"]
[BlackFideId "5800439"]
[WhiteElo "2301"]
[BlackElo "2216"]
[Result "1-0"]
[Round "05"]
[TimeControl "180+1"]
[Date "2022.02.15"]
[WhiteClock "0:00:09"]
[BlackClock "0:00:20"]

1. e4 {[%clk 0:03:00]}  e5 {[%clk 0:02:58]} 2. Nf3 {[%clk 0:03:01]}  Nf6 {[%clk 0:02:58]} 3. Nxe5 {[%clk 0:03:01]}  Nc6 {[%clk 0:02:58]} 4. Nxc6 {[%clk 0:03:00]}  dxc6 {[%clk 0:02:59]} 5. d3 {[%clk 0:02:59]}  Bc5 {[%clk 0:03:00]} 6. Be2 {[%clk 0:02:51]}  h5 {[%clk 0:02:59]} 7. Be3 {[%clk 0:02:46]}  Bxe3 {[%clk 0:02:58]} 8. fxe3 {[%clk 0:02:47]}  Ng4 {[%clk 0:02:59]} 9. Bxg4 {[%clk 0:02:40]}  hxg4 {[%clk 0:02:59]} 10. g3 {[%clk 0:02:37]}  Qg5 {[%clk 0:02:52]} 11. Qe2 {[%clk 0:02:29]}  Be6 {[%clk 0:02:52]} 12. Nc3 {[%clk 0:02:22]}  O-O-O {[%clk 0:02:53]} 13. O-O-O {[%clk 0:02:21]}  Qa5 {[%clk 0:02:52]} 14. a3 {[%clk 0:02:21]}  Rh5 {[%clk 0:02:53]} 15. d4 {[%clk 0:02:17]}  b5 {[%clk 0:02:11]} 16. d5 {[%clk 0:01:54]}  cxd5 {[%clk 0:02:07]} 17. Nxb5 {[%clk 0:01:53]}  dxe4 {[%clk 0:02:01]} 18. Rxd8+ {[%clk 0:01:50]}  Kxd8 {[%clk 0:02:02]} 19. Nd4 {[%clk 0:01:46]}  Bd7 {[%clk 0:01:46]} 20. Rd1 {[%clk 0:01:46]}  Kc8 {[%clk 0:01:42]} 21. Qc4 {[%clk 0:01:39]}  Qd5 {[%clk 0:01:30]} 22. Qc3 {[%clk 0:01:11]}  Qc5 {[%clk 0:01:19]} 23. Qb3 {[%clk 0:00:51]}  Be8 {[%clk 0:00:47]} 24. Rd2 {[%clk 0:00:34]}  Rh6 {[%clk 0:00:48]} 25. c3 {[%clk 0:00:27]}  Rf6 {[%clk 0:00:48]} 26. Qd1 {[%clk 0:00:25]}  Kb7 {[%clk 0:00:39]} 27. Kb1 {[%clk 0:00:18]}  Qc4 {[%clk 0:00:36]} 28. Ne2 {[%clk 0:00:09]}  Ba4 {[%clk 0:00:35]} 29. Qe1 {[%clk 0:00:07]}  Bb3 {[%clk 0:00:33]} 30. Rd4 {[%clk 0:00:05]}  Qa6 {[%clk 0:00:26]} 31. Rb4+ {[%clk 0:00:05]}  Kc8 {[%clk 0:00:27]} 32. Rxb3 {[%clk 0:00:05]}  Qd3+ {[%clk 0:00:25]} 33. Ka2 {[%clk 0:00:05]}  Rf3 {[%clk 0:00:22]} 34. Nf4 {[%clk 0:00:04]}  Qc4 {[%clk 0:00:21]} 35. Qe2 {[%clk 0:00:03]}  Qxe2 {[%clk 0:00:19]} 36. Nxe2 {[%clk 0:00:04]}  Rxe3 {[%clk 0:00:20]} 37. Nd4 {[%clk 0:00:03]}  Rd3 {[%clk 0:00:18]} 38. Rb5 {[%clk 0:00:03]}  f6 {[%clk 0:00:16]} 39. Rf5 {[%clk 0:00:03]}  e3 {[%clk 0:00:16]} 40. Rf1 {[%clk 0:00:03]}  c5 {[%clk 0:00:15]} 41. Nf5 {[%clk 0:00:01]}  e2 {[%clk 0:00:15]} 42. Re1 {[%clk 0:00:02]}  Rd2 {[%clk 0:00:16]} 43. Ne3 {[%clk 0:00:02]}  g6 {[%clk 0:00:14]} 44. Nc4 {[%clk 0:00:02]}  f5 {[%clk 0:00:15]} 45. Nxd2 {[%clk 0:00:02]}  f4 {[%clk 0:00:16]} 46. gxf4 {[%clk 0:00:02]}  g3 {[%clk 0:00:17]} 47. hxg3 {[%clk 0:00:03]}  g5 {[%clk 0:00:17]} 48. Rxe2 {[%clk 0:00:04]}  gxf4 {[%clk 0:00:18]} 49. gxf4 {[%clk 0:00:05]}  Kd7 {[%clk 0:00:18]} 50. Nc4 {[%clk 0:00:06]}  Kc6 {[%clk 0:00:18]} 51. Kb3 {[%clk 0:00:07]}  Kd5 {[%clk 0:00:19]} 52. Re6 {[%clk 0:00:08]}  a5 {[%clk 0:00:19]} 53. Re5+ {[%clk 0:00:08]}  Kc6 {[%clk 0:00:19]} 54. a4 {[%clk 0:00:08]}  Kd7 {[%clk 0:00:19]} 55. f5 {[%clk 0:00:08]}  Kc6 {[%clk 0:00:20]} 56. f6 {[%clk 0:00:09]} 1-0


[Site "https://www.chess.com"]

[Event "Titled Tuesday Blitz February 15 Early 2022"]
[White "Liyanage, Ranindu Dilshan"]
[Black "Eynullayev, Atilla"]
[WhiteFideId "9915834"]
[BlackFideId "13413570"]
[WhiteElo "1858"]
[BlackElo "1979"]
[Result "0-1"]
[Round "05"]
[TimeControl "180+1"]
[Date "2022.02.15"]
[WhiteClock "0:00:01"]
[BlackClock "0:00:09"]

1. e4 {[%clk 0:02:46]}  c5 {[%clk 0:02:58]} 2. Nf3 {[%clk 0:02:45]}  e6 {[%clk 0:02:57]} 3. d4 {[%clk 0:02:45]}  cxd4 {[%clk 0:02:57]} 4. Nxd4 {[%clk 0:02:46]}  Nc6 {[%clk 0:02:58]} 5. Nc3 {[%clk 0:02:46]}  a6 {[%clk 0:02:58]} 6. Be3 {[%clk 0:02:46]}  Nf6 {[%clk 0:02:59]} 7. f4 {[%clk 0:02:36]}  Bb4 {[%clk 0:02:56]} 8. Bd3 {[%clk 0:02:34]}  e5 {[%clk 0:02:45]} 9. fxe5 {[%clk 0:02:11]}  Nxe5 {[%clk 0:02:44]} 10. Nf5 {[%clk 0:02:11]}  O-O {[%clk 0:02:34]} 11. O-O {[%clk 0:02:08]}  Neg4 {[%clk 0:02:12]} 12. Bd4 {[%clk 0:02:02]}  d5 {[%clk 0:01:50]} 13. e5 {[%clk 0:01:44]}  Qc7 {[%clk 0:01:43]} 14. Nxg7 {[%clk 0:00:32]}  Kxg7 {[%clk 0:01:23]} 15. exf6+ {[%clk 0:00:32]}  Kh8 {[%clk 0:01:22]} 16. g3 {[%clk 0:00:29]}  Bc5 {[%clk 0:00:19]} 17. Bf5 {[%clk 0:00:24]}  Ne3 {[%clk 0:00:18]} 18. Bxe3 {[%clk 0:00:24]}  Bxe3+ {[%clk 0:00:18]} 19. Kg2 {[%clk 0:00:22]}  d4 {[%clk 0:00:17]} 20. Bxh7 {[%clk 0:00:11]}  Kxh7 {[%clk 0:00:12]} 21. Qd3+ {[%clk 0:00:06]}  Kh8 {[%clk 0:00:12]} 22. Ne2 {[%clk 0:00:05]}  Qc6+ {[%clk 0:00:11]} 23. Rf3 {[%clk 0:00:04]}  Bg4 {[%clk 0:00:12]} 24. Rf1 {[%clk 0:00:04]}  Rae8 {[%clk 0:00:12]} 25. h3 {[%clk 0:00:03]}  Bxf3+ {[%clk 0:00:12]} 26. Rxf3 {[%clk 0:00:04]}  Qe4 {[%clk 0:00:13]} 27. Qc4 {[%clk 0:00:05]}  Rc8 {[%clk 0:00:11]} 28. Qb4 {[%clk 0:00:02]}  Rg8 {[%clk 0:00:10]} 29. g4 {[%clk 0:00:02]}  Rxc2 {[%clk 0:00:09]} 30. Kf1 {[%clk 0:00:01]}  Qxf3+ {[%clk 0:00:09]} 0-1


[Site "https://www.chess.com"]

[Event "Titled Tuesday Blitz February 15 Early 2022"]
[White "Lohani, Sujana"]
[Black "Van den Dikkenberg, Erik"]
[WhiteFideId "12311987"]
[BlackFideId "1005880"]
[WhiteElo "1691"]
[BlackElo "2118"]
[Result "0-1"]
[Round "05"]
[TimeControl "180+1"]
[Date "2022.02.15"]
[WhiteClock "0:00:01"]
[BlackClock "0:00:17"]

1. d4 {[%clk 0:03:00]}  Nf6 {[%clk 0:02:53]} 2. Nf3 {[%clk 0:03:00]}  g6 {[%clk 0:02:53]} 3. c4 {[%clk 0:03:00]}  Bg7 {[%clk 0:02:53]} 4. Nc3 {[%clk 0:03:00]}  d6 {[%clk 0:02:53]} 5. e4 {[%clk 0:03:00]}  O-O {[%clk 0:02:54]} 6. Be2 {[%clk 0:03:00]}  e5 {[%clk 0:02:53]} 7. O-O {[%clk 0:02:59]}  Nc6 {[%clk 0:02:53]} 8. d5 {[%clk 0:02:58]}  Ne7 {[%clk 0:02:54]} 9. Ne1 {[%clk 0:02:58]}  Nd7 {[%clk 0:02:53]} 10. f4 {[%clk 0:02:56]}  exf4 {[%clk 0:02:50]} 11. Bxf4 {[%clk 0:02:55]}  Ne5 {[%clk 0:02:48]} 12. Nd3 {[%clk 0:02:52]}  Nxc4 {[%clk 0:02:44]} 13. Bg5 {[%clk 0:02:44]}  Nxb2 {[%clk 0:02:39]} 14. Nxb2 {[%clk 0:02:42]}  Bxc3 {[%clk 0:02:39]} 15. Qc2 {[%clk 0:02:41]}  Bg7 {[%clk 0:02:27]} 16. Rac1 {[%clk 0:02:40]}  f6 {[%clk 0:02:23]} 17. Be3 {[%clk 0:02:32]}  c6 {[%clk 0:02:23]} 18. dxc6 {[%clk 0:02:03]}  bxc6 {[%clk 0:02:15]} 19. Nc4 {[%clk 0:02:01]}  d5 {[%clk 0:02:10]} 20. Nd2 {[%clk 0:01:35]}  Kh8 {[%clk 0:02:01]} 21. Bc5 {[%clk 0:01:27]}  Be6 {[%clk 0:01:36]} 22. Rcd1 {[%clk 0:01:25]}  Qd7 {[%clk 0:01:29]} 23. Nb3 {[%clk 0:01:22]}  Rad8 {[%clk 0:01:25]} 24. Bxe7 {[%clk 0:01:14]}  Qxe7 {[%clk 0:01:25]} 25. Qxc6 {[%clk 0:01:14]}  dxe4 {[%clk 0:01:17]} 26. Qxe4 {[%clk 0:01:12]}  Rxd1 {[%clk 0:01:11]} 27. Rxd1 {[%clk 0:01:08]}  f5 {[%clk 0:01:08]} 28. Qf3 {[%clk 0:00:59]}  Rd8 {[%clk 0:00:57]} 29. Rxd8+ {[%clk 0:00:35]}  Qxd8 {[%clk 0:00:56]} 30. Qb7 {[%clk 0:00:34]}  a5 {[%clk 0:00:31]} 31. Nc5 {[%clk 0:00:32]}  Bd4+ {[%clk 0:00:29]} 32. Kf1 {[%clk 0:00:31]}  Bxc5 {[%clk 0:00:29]} 33. Qb2+ {[%clk 0:00:24]}  Qd4 {[%clk 0:00:27]} 34. Qb8+ {[%clk 0:00:23]}  Kg7 {[%clk 0:00:25]} 35. Ke1 {[%clk 0:00:15]}  Bb4+ {[%clk 0:00:24]} 36. Kf1 {[%clk 0:00:14]}  Bf7 {[%clk 0:00:22]} 37. g3 {[%clk 0:00:11]}  Bc5 {[%clk 0:00:21]} 38. Ke1 {[%clk 0:00:10]}  Qf2+ {[%clk 0:00:20]} 39. Kd1 {[%clk 0:00:10]}  Qd4+ {[%clk 0:00:20]} 40. Ke1 {[%clk 0:00:09]}  Bxa2 {[%clk 0:00:20]} 41. Qc7+ {[%clk 0:00:07]}  Bf7 {[%clk 0:00:19]} 42. Qb7 {[%clk 0:00:03]}  a4 {[%clk 0:00:19]} 43. Qb1 {[%clk 0:00:02]}  a3 {[%clk 0:00:18]} 44. Qc2 {[%clk 0:00:01]}  a2 {[%clk 0:00:17]} 0-1


[Site "https://www.chess.com"]

[Event "Titled Tuesday Blitz February 15 Early 2022"]
[White "Lopez Del Alamo, Antonio"]
[Black "Kuznecovs, Nikita"]
[WhiteFideId "2227339"]
[BlackFideId "11604557"]
[WhiteElo "2082"]
[BlackElo "2127"]
[Result "0-1"]
[Round "05"]
[TimeControl "180+1"]
[Date "2022.02.15"]
[WhiteClock "0:02:31"]
[BlackClock "0:02:43"]

1. e4 {[%clk 0:03:00]}  e6 {[%clk 0:03:00]} 2. d3 {[%clk 0:02:57]}  d5 {[%clk 0:03:00]} 3. Nd2 {[%clk 0:02:52]}  Nf6 {[%clk 0:02:59]} 4. Ngf3 {[%clk 0:02:52]}  c5 {[%clk 0:02:59]} 5. g4 {[%clk 0:02:51]}  Nxg4 {[%clk 0:02:58]} 6. Rg1 {[%clk 0:02:48]}  Nf6 {[%clk 0:02:57]} 7. e5 {[%clk 0:02:45]}  Nfd7 {[%clk 0:02:58]} 8. Bh3 {[%clk 0:02:43]}  Nc6 {[%clk 0:02:57]} 9. Qe2 {[%clk 0:02:43]}  Qc7 {[%clk 0:02:55]} 10. c3 {[%clk 0:02:32]}  Ndxe5 {[%clk 0:02:50]} 11. Nxe5 {[%clk 0:02:30]}  Qxe5 {[%clk 0:02:49]} 12. Qxe5 {[%clk 0:02:31]}  Nxe5 {[%clk 0:02:49]} 13. Ke2 {[%clk 0:02:31]}  b6 {[%clk 0:02:43]} 0-1


[Site "https://www.chess.com"]

[Event "Titled Tuesday Blitz February 15 Early 2022"]
[White "Makarian, Rudik"]
[Black "Bortnyk, Olexandr"]
[WhiteFideId "44105681"]
[BlackFideId "14120828"]
[WhiteElo "2486"]
[BlackElo "2723"]
[Result "0-1"]
[Round "05"]
[TimeControl "180+1"]
[Date "2022.02.15"]
[WhiteClock "0:00:12"]
[BlackClock "0:00:25"]

1. c4 {[%clk 0:03:00]}  d6 {[%clk 0:02:54]} 2. Nf3 {[%clk 0:02:57]}  Nf6 {[%clk 0:02:53]} 3. Nc3 {[%clk 0:02:54]}  e5 {[%clk 0:02:47]} 4. d4 {[%clk 0:02:52]}  Nbd7 {[%clk 0:02:38]} 5. e4 {[%clk 0:02:51]}  g6 {[%clk 0:02:29]} 6. Be2 {[%clk 0:02:49]}  Bg7 {[%clk 0:02:29]} 7. O-O {[%clk 0:02:50]}  O-O {[%clk 0:02:30]} 8. Be3 {[%clk 0:02:51]}  c6 {[%clk 0:02:20]} 9. d5 {[%clk 0:02:48]}  c5 {[%clk 0:02:13]} 10. Ne1 {[%clk 0:02:46]}  Ne8 {[%clk 0:02:09]} 11. g3 {[%clk 0:02:31]}  f5 {[%clk 0:02:06]} 12. exf5 {[%clk 0:02:31]}  gxf5 {[%clk 0:02:06]} 13. f4 {[%clk 0:02:31]}  e4 {[%clk 0:02:07]} 14. Qd2 {[%clk 0:02:13]}  Ndf6 {[%clk 0:02:05]} 15. Ng2 {[%clk 0:02:12]}  Qe7 {[%clk 0:02:01]} 16. Rab1 {[%clk 0:02:11]}  a5 {[%clk 0:01:59]} 17. Kh1 {[%clk 0:01:54]}  Bd7 {[%clk 0:01:51]} 18. Rg1 {[%clk 0:01:48]}  Kh8 {[%clk 0:01:23]} 19. a4 {[%clk 0:01:44]}  Nc7 {[%clk 0:01:21]} 20. Nb5 {[%clk 0:01:35]}  Na6 {[%clk 0:01:03]} 21. Qe1 {[%clk 0:01:29]}  Nb4 {[%clk 0:01:02]} 22. Bd2 {[%clk 0:01:05]}  Nc2 {[%clk 0:01:02]} 23. Qd1 {[%clk 0:01:01]}  Nd4 {[%clk 0:01:01]} 24. Bc3 {[%clk 0:01:02]}  Bxb5 {[%clk 0:00:25]} 25. axb5 {[%clk 0:01:03]}  e3 {[%clk 0:00:25]} 26. Bxd4 {[%clk 0:00:11]}  cxd4 {[%clk 0:00:25]} 27. Qxd4 {[%clk 0:00:12]}  Ng4 {[%clk 0:00:25]} 0-1


[Site "https://www.chess.com"]

[Event "Titled Tuesday Blitz February 15 Early 2022"]
[White "Martin Carmona, Gaston Manuel"]
[Black "Brodowski, Piotr"]
[WhiteFideId "22284567"]
[BlackFideId "1124480"]
[WhiteElo "2161"]
[BlackElo "2422"]
[Result "1-0"]
[Round "05"]
[TimeControl "180+1"]
[Date "2022.02.15"]
[WhiteClock "0:00:17"]
[BlackClock "0:00:02"]

1. e4 {[%clk 0:03:00]}  d6 {[%clk 0:02:58]} 2. d4 {[%clk 0:03:00]}  Nf6 {[%clk 0:02:57]} 3. Nc3 {[%clk 0:02:59]}  g6 {[%clk 0:02:57]} 4. g3 {[%clk 0:02:56]}  Bg7 {[%clk 0:02:56]} 5. Bg2 {[%clk 0:02:57]}  O-O {[%clk 0:02:57]} 6. Nf3 {[%clk 0:02:54]}  c6 {[%clk 0:02:56]} 7. a4 {[%clk 0:02:54]}  a5 {[%clk 0:02:55]} 8. O-O {[%clk 0:02:54]}  Bg4 {[%clk 0:02:51]} 9. h3 {[%clk 0:02:53]}  Bxf3 {[%clk 0:02:51]} 10. Qxf3 {[%clk 0:02:54]}  Nfd7 {[%clk 0:02:49]} 11. Be3 {[%clk 0:02:53]}  Na6 {[%clk 0:02:45]} 12. Qe2 {[%clk 0:02:49]}  e5 {[%clk 0:02:33]} 13. d5 {[%clk 0:02:49]}  Qe7 {[%clk 0:02:28]} 14. Rad1 {[%clk 0:02:42]}  Nac5 {[%clk 0:02:25]} 15. b3 {[%clk 0:02:41]}  Rac8 {[%clk 0:02:07]} 16. dxc6 {[%clk 0:02:40]}  bxc6 {[%clk 0:02:06]} 17. Qd2 {[%clk 0:02:40]}  Nb7 {[%clk 0:02:01]} 18. f4 {[%clk 0:02:35]}  exf4 {[%clk 0:01:50]} 19. gxf4 {[%clk 0:02:36]}  Ndc5 {[%clk 0:01:51]} 20. Bd4 {[%clk 0:02:21]}  Rfe8 {[%clk 0:01:47]} 21. Kh2 {[%clk 0:02:11]}  Bh6 {[%clk 0:01:42]} 22. Qf2 {[%clk 0:02:08]}  Bg7 {[%clk 0:01:29]} 23. Rfe1 {[%clk 0:02:04]}  Bxd4 {[%clk 0:01:14]} 24. Qxd4 {[%clk 0:02:03]}  Qh4 {[%clk 0:01:13]} 25. Qe3 {[%clk 0:01:56]}  Qf6 {[%clk 0:00:55]} 26. e5 {[%clk 0:01:50]}  Qe7 {[%clk 0:00:44]} 27. Qg3 {[%clk 0:01:47]}  d5 {[%clk 0:00:44]} 28. f5 {[%clk 0:01:34]}  Kh8 {[%clk 0:00:44]} 29. Rd4 {[%clk 0:01:30]}  gxf5 {[%clk 0:00:39]} 30. Rf4 {[%clk 0:01:23]}  Rg8 {[%clk 0:00:39]} 31. Qf2 {[%clk 0:01:21]}  Rg7 {[%clk 0:00:34]} 32. Rxf5 {[%clk 0:01:20]}  Rcg8 {[%clk 0:00:34]} 33. Bh1 {[%clk 0:01:18]}  Ne6 {[%clk 0:00:31]} 34. Rf6 {[%clk 0:01:13]}  Nbc5 {[%clk 0:00:29]} 35. Rf1 {[%clk 0:01:08]}  d4 {[%clk 0:00:29]} 36. Ne4 {[%clk 0:01:05]}  Nxe4 {[%clk 0:00:28]} 37. Bxe4 {[%clk 0:01:06]}  Ng5 {[%clk 0:00:29]} 38. Qf5 {[%clk 0:00:56]}  Qb4 {[%clk 0:00:26]} 39. Bd3 {[%clk 0:00:43]}  Qd2+ {[%clk 0:00:26]} 40. Rf2 {[%clk 0:00:43]}  Qe3 {[%clk 0:00:26]} 41. h4 {[%clk 0:00:37]}  Ne4 {[%clk 0:00:24]} 42. Qf3 {[%clk 0:00:21]}  Qxf2+ {[%clk 0:00:17]} 43. Qxf2 {[%clk 0:00:21]}  Nxf2 {[%clk 0:00:17]} 44. Rxf2 {[%clk 0:00:22]}  Rg4 {[%clk 0:00:15]} 45. Kh3 {[%clk 0:00:20]}  Rg3+ {[%clk 0:00:15]} 46. Kh2 {[%clk 0:00:20]}  R8g7 {[%clk 0:00:15]} 47. Rf6 {[%clk 0:00:18]}  R3g4 {[%clk 0:00:15]} 48. Kh3 {[%clk 0:00:18]}  Rg1 {[%clk 0:00:15]} 49. Kh2 {[%clk 0:00:18]}  Re1 {[%clk 0:00:14]} 50. Rxc6 {[%clk 0:00:17]}  Rxe5 {[%clk 0:00:14]} 51. Rc8+ {[%clk 0:00:17]}  Rg8 {[%clk 0:00:15]} 52. Rc7 {[%clk 0:00:17]}  Kg7 {[%clk 0:00:13]} 53. Kg3 {[%clk 0:00:17]}  Rge8 {[%clk 0:00:08]} 54. Kf4 {[%clk 0:00:17]}  R8e7 {[%clk 0:00:08]} 55. Rc6 {[%clk 0:00:16]}  R5e6 {[%clk 0:00:09]} 56. Rc5 {[%clk 0:00:16]}  Rf6+ {[%clk 0:00:09]} 57. Kg3 {[%clk 0:00:16]}  Re1 {[%clk 0:00:09]} 58. Kg2 {[%clk 0:00:16]}  h5 {[%clk 0:00:06]} 59. Rxh5 {[%clk 0:00:16]}  Re3 {[%clk 0:00:02]} 60. Rg5+ {[%clk 0:00:16]}  Kf8 {[%clk 0:00:02]} 61. Rxa5 {[%clk 0:00:17]}  Rff3 {[%clk 0:00:02]} 62. Rg5 {[%clk 0:00:17]}  f6 {[%clk 0:00:02]} 63. Rg4 {[%clk 0:00:17]} 1-0


[Site "https://www.chess.com"]

[Event "Titled Tuesday Blitz February 15 Early 2022"]
[White "Martin, Lewis"]
[Black "Bodnaruk, Anastasia"]
[WhiteFideId "410551"]
[BlackFideId "4181751"]
[WhiteElo "2145"]
[BlackElo "2393"]
[Result "1/2-1/2"]
[Round "05"]
[TimeControl "180+1"]
[Date "2022.02.15"]
[WhiteClock "0:00:40"]
[BlackClock "0:00:04"]

1. e4 {[%clk 0:03:00]}  c5 {[%clk 0:02:56]} 2. Nf3 {[%clk 0:03:01]}  d6 {[%clk 0:02:56]} 3. d4 {[%clk 0:03:01]}  cxd4 {[%clk 0:02:56]} 4. Nxd4 {[%clk 0:03:02]}  Nf6 {[%clk 0:02:56]} 5. Nc3 {[%clk 0:03:02]}  a6 {[%clk 0:02:55]} 6. Bg5 {[%clk 0:03:00]}  Nbd7 {[%clk 0:02:55]} 7. Qe2 {[%clk 0:03:01]}  h6 {[%clk 0:02:54]} 8. Bh4 {[%clk 0:03:00]}  g6 {[%clk 0:02:53]} 9. O-O-O {[%clk 0:02:59]}  Bg7 {[%clk 0:02:47]} 10. f4 {[%clk 0:02:57]}  e5 {[%clk 0:02:46]} 11. g4 {[%clk 0:02:37]}  O-O {[%clk 0:02:26]} 12. fxe5 {[%clk 0:02:29]}  dxe5 {[%clk 0:02:26]} 13. Nf5 {[%clk 0:02:18]}  gxf5 {[%clk 0:02:03]} 14. gxf5 {[%clk 0:02:08]}  Qb6 {[%clk 0:01:58]} 15. Qg2 {[%clk 0:02:03]}  Kh7 {[%clk 0:01:56]} 16. Bc4 {[%clk 0:01:56]}  Qe3+ {[%clk 0:01:09]} 17. Kb1 {[%clk 0:01:55]}  b5 {[%clk 0:01:08]} 18. Rhg1 {[%clk 0:01:52]}  Nh5 {[%clk 0:01:05]} 19. Bxf7 {[%clk 0:01:33]}  Rxf7 {[%clk 0:00:58]} 20. Qg6+ {[%clk 0:01:29]}  Kg8 {[%clk 0:00:58]} 21. Qxh5 {[%clk 0:01:26]}  Bb7 {[%clk 0:00:31]} 22. Qxf7+ {[%clk 0:01:18]}  Kxf7 {[%clk 0:00:30]} 23. Rxd7+ {[%clk 0:01:17]}  Kf8 {[%clk 0:00:17]} 24. Rgxg7 {[%clk 0:01:11]}  Qf4 {[%clk 0:00:07]} 25. a3 {[%clk 0:00:55]}  Qxh4 {[%clk 0:00:06]} 26. Rxb7 {[%clk 0:00:54]}  Rd8 {[%clk 0:00:05]} 27. Nd5 {[%clk 0:00:48]}  Rxd5 {[%clk 0:00:04]} 28. exd5 {[%clk 0:00:47]}  Qc4 {[%clk 0:00:04]} 29. d6 {[%clk 0:00:42]}  Qf1+ {[%clk 0:00:04]} 30. Ka2 {[%clk 0:00:41]}  Qc4+ {[%clk 0:00:04]} 31. Kb1 {[%clk 0:00:40]}  Qf1+ {[%clk 0:00:04]} 32. Ka2 {[%clk 0:00:40]}  Qc4+ {[%clk 0:00:04]} 33. Kb1 {[%clk 0:00:40]} 1/2-1/2


[Site "https://www.chess.com"]

[Event "Titled Tuesday Blitz February 15 Early 2022"]
[White "Martirosyan, Haik M."]
[Black "Kezin, Roman"]
[WhiteFideId "13306553"]
[BlackFideId "24124621"]
[WhiteElo "2735"]
[BlackElo "2509"]
[Result "1-0"]
[Round "05"]
[TimeControl "180+1"]
[Date "2022.02.15"]
[WhiteClock "0:01:35"]
[BlackClock "0:00:01"]

1. c4 {[%clk 0:03:00]}  e6 {[%clk 0:02:59]} 2. Nc3 {[%clk 0:03:00]}  d5 {[%clk 0:02:59]} 3. d4 {[%clk 0:03:00]}  c6 {[%clk 0:02:56]} 4. Qd3 {[%clk 0:02:56]}  Nf6 {[%clk 0:02:48]} 5. Nf3 {[%clk 0:02:54]}  dxc4 {[%clk 0:02:44]} 6. Qxc4 {[%clk 0:02:55]}  b5 {[%clk 0:02:45]} 7. Qd3 {[%clk 0:02:56]}  Nbd7 {[%clk 0:02:45]} 8. e4 {[%clk 0:02:56]}  b4 {[%clk 0:02:41]} 9. Na4 {[%clk 0:02:56]}  Qa5 {[%clk 0:02:41]} 10. b3 {[%clk 0:02:55]}  c5 {[%clk 0:02:40]} 11. d5 {[%clk 0:02:42]}  exd5 {[%clk 0:01:55]} 12. exd5 {[%clk 0:02:33]}  Bd6 {[%clk 0:01:55]} 13. Qe3+ {[%clk 0:02:30]}  Kd8 {[%clk 0:01:54]} 14. Qg5 {[%clk 0:02:28]}  Re8+ {[%clk 0:01:49]} 15. Be3 {[%clk 0:02:27]}  h6 {[%clk 0:01:31]} 16. Qxg7 {[%clk 0:02:19]}  Nxd5 {[%clk 0:01:27]} 17. O-O-O {[%clk 0:02:12]}  Bb7 {[%clk 0:01:26]} 18. Bc4 {[%clk 0:02:08]}  Nxe3 {[%clk 0:00:46]} 19. fxe3 {[%clk 0:02:07]}  Kc7 {[%clk 0:00:41]} 20. Qxh6 {[%clk 0:01:54]}  f6 {[%clk 0:00:30]} 21. Rxd6 {[%clk 0:01:47]}  Kxd6 {[%clk 0:00:30]} 22. Qf4+ {[%clk 0:01:47]}  Ke7 {[%clk 0:00:22]} 23. Rd1 {[%clk 0:01:47]}  Kd8 {[%clk 0:00:05]} 24. Qxf6+ {[%clk 0:01:41]}  Kc8 {[%clk 0:00:03]} 25. Qf7 {[%clk 0:01:38]}  Qd8 {[%clk 0:00:02]} 26. Nxc5 {[%clk 0:01:36]}  Re7 {[%clk 0:00:02]} 27. Nxb7 {[%clk 0:01:34]}  Kxb7 {[%clk 0:00:01]} 28. Qd5+ {[%clk 0:01:35]}  Kb8 {[%clk 0:00:01]} 29. Nd4 {[%clk 0:01:35]} 1-0


[Site "https://www.chess.com"]

[Event "Titled Tuesday Blitz February 15 Early 2022"]
[White "Mischuk, Dmitry"]
[Black "Danaci, Ege"]
[WhiteFideId "14118734"]
[BlackFideId "34506748"]
[WhiteElo "2256"]
[BlackElo "1799"]
[Result "1-0"]
[Round "05"]
[TimeControl "180+1"]
[Date "2022.02.15"]
[WhiteClock "0:01:09"]
[BlackClock "0:00:12"]

1. e4 {[%clk 0:02:32]}  c5 {[%clk 0:02:56]} 2. d4 {[%clk 0:02:32]}  cxd4 {[%clk 0:02:56]} 3. Nf3 {[%clk 0:02:32]}  e5 {[%clk 0:02:54]} 4. c3 {[%clk 0:02:30]}  dxc3 {[%clk 0:02:15]} 5. Nxc3 {[%clk 0:02:31]}  Nc6 {[%clk 0:02:14]} 6. Bc4 {[%clk 0:02:31]}  d6 {[%clk 0:02:12]} 7. Ng5 {[%clk 0:02:02]}  Nh6 {[%clk 0:02:09]} 8. Qf3 {[%clk 0:02:00]}  f5 {[%clk 0:01:57]} 9. exf5 {[%clk 0:01:45]}  Nd4 {[%clk 0:01:52]} 10. Qh5+ {[%clk 0:01:29]}  Kd7 {[%clk 0:01:12]} 11. Ne6 {[%clk 0:01:27]}  Nxe6 {[%clk 0:00:31]} 12. fxe6+ {[%clk 0:01:14]}  Kc7 {[%clk 0:00:31]} 13. Bg5 {[%clk 0:01:10]}  Be7 {[%clk 0:00:12]} 14. Bxe7 {[%clk 0:01:09]} 1-0


[Site "https://www.chess.com"]

[Event "Titled Tuesday Blitz February 15 Early 2022"]
[White "Miszler, Levente"]
[Black "Marcinczyk, Monika"]
[WhiteFideId "763276"]
[BlackFideId "1192051"]
[WhiteElo "1966"]
[BlackElo "1730"]
[Result "1-0"]
[Round "05"]
[TimeControl "180+1"]
[Date "2022.02.15"]
[WhiteClock "0:01:35"]
[BlackClock "0:01:14"]

1. d4 {[%clk 0:03:00]}  d5 {[%clk 0:02:56]} 2. c4 {[%clk 0:02:59]}  e6 {[%clk 0:02:54]} 3. Nf3 {[%clk 0:02:59]}  dxc4 {[%clk 0:02:50]} 4. e3 {[%clk 0:02:55]}  b5 {[%clk 0:02:50]} 5. a4 {[%clk 0:02:54]}  c6 {[%clk 0:02:51]} 6. axb5 {[%clk 0:02:48]}  cxb5 {[%clk 0:02:49]} 7. b3 {[%clk 0:02:49]}  Bb4+ {[%clk 0:02:46]} 8. Bd2 {[%clk 0:02:46]}  Bxd2+ {[%clk 0:02:42]} 9. Nbxd2 {[%clk 0:02:47]}  c3 {[%clk 0:02:39]} 10. Bxb5+ {[%clk 0:02:46]}  Bd7 {[%clk 0:02:38]} 11. Bxd7+ {[%clk 0:02:44]}  Nxd7 {[%clk 0:02:37]} 12. Nc4 {[%clk 0:02:43]}  Nb6 {[%clk 0:02:36]} 13. Qc2 {[%clk 0:02:39]}  Nf6 {[%clk 0:02:23]} 14. Qxc3 {[%clk 0:02:35]}  O-O {[%clk 0:02:22]} 15. O-O {[%clk 0:02:28]}  Ne4 {[%clk 0:02:22]} 16. Qd3 {[%clk 0:02:23]}  Nd6 {[%clk 0:02:17]} 17. Nfe5 {[%clk 0:02:18]}  Nd5 {[%clk 0:02:15]} 18. Rfc1 {[%clk 0:02:08]}  Nb4 {[%clk 0:01:55]} 19. Qd2 {[%clk 0:02:06]}  a5 {[%clk 0:01:43]} 20. Nxa5 {[%clk 0:01:53]}  Rxa5 {[%clk 0:01:38]} 21. Qxb4 {[%clk 0:01:52]}  Rxa1 {[%clk 0:01:31]} 22. Rxa1 {[%clk 0:01:53]}  Ne4 {[%clk 0:01:27]} 23. Nc6 {[%clk 0:01:43]}  Qg5 {[%clk 0:01:21]} 24. Qxf8+ {[%clk 0:01:33]}  Kxf8 {[%clk 0:01:17]} 25. Ra8+ {[%clk 0:01:34]}  Qd8 {[%clk 0:01:14]} 26. Rxd8# {[%clk 0:01:35]} 1-0


[Site "https://www.chess.com"]